fUSD/lending_fUSD_20250720
["ID","MTS","AMOUNT","RATE_DAILY","PERIOD"]
[373377554,1752976261973,-480.0,0.00019397,2]
[373377555,1752976261982,-480.0,0.00019397,2]
[373377556,1752976261992,-480.0,0.00019397,2]
[373377557,1752976262002,-1428.17,0.00019397,2]
[373377558,1752976262011,-1525.79,0.00019397,2]
[373377559,1752976262022,-1025.14,0.00019397,2]
[373377560,1752976262031,-1391.25,0.00019397,2]
[373377561,1752976262041,-601.74,0.00019397,2]
[373377562,1752976262050,-480.0,0.00019397,2]
[373377563,1752976262060,-725.67,0.00019397,2]
[373377564,1752976262069,-595.82,0.00019397,2]
[373377565,1752976262080,-1310.94,0.00019397,2]
[373377566,1752976262090,-4527.03,0.00019397,2]
[373377567,1752976262100,-2184.53,0.00019397,2]
[373377568,1752976262112,-2126.9,0.00019397,2]
[373377569,1752976262122,-753.76,0.00019397,2]
[373377570,1752976262132,-480.0,0.00019397,2]
[373377571,1752976262142,-480.0,0.00019397,2]
[373377572,1752976262151,-480.0,0.00019397,2]
[373377573,1752976262161,-1111.03,0.00019397,2]
[373377574,1752976262170,-480.0,0.00019397,2]
[373377575,1752976262180,-1996.48,0.00019397,2]
[373377576,1752976262189,-493.91,0.00019397,2]
[373377577,1752976262198,-1367.45,0.00019397,2]
[373377578,1752976262207,-480.0,0.00019397,2]
[373377579,1752976262217,-1080.26,0.00019397,2]
[373377580,1752976262226,-480.0,0.00019397,2]
[373377581,1752976262236,-2492.25,0.00019397,2]
[373377582,1752976262245,-912.59,0.00019397,2]
[373377583,1752976262255,-799.59,0.00019397,2]
[373377584,1752976262264,-480.0,0.00019397,2]
[373377585,1752976262275,-480.0,0.00019397,2]
[373377586,1752976262285,-615.47,0.00019397,2]
[373377587,1752976262295,-1094.62,0.00019397,2]
[373377588,1752976262304,-623.82,0.00019397,2]
[373377589,1752976262315,-480.0,0.00019397,2]
[373377590,1752976262324,-1838.11,0.00019397,2]
[373377591,1752976262334,-940.07,0.00019397,2]
[373377592,1752976262343,-480.0,0.00019397,2]
[373377593,1752976262353,-828.57,0.00019397,2]
[373377594,1752976262363,-530.44,0.00019397,2]
[373377595,1752976262373,-1831.8,0.00019397,2]
[373377596,1752976262382,-780.91,0.00019397,2]
[373377597,1752976262392,-3807.6,0.00019397,2]
[373377598,1752976262401,-480.0,0.00019397,2]
[373377599,1752976262411,-1090.39,0.00019397,2]
[373377600,1752976262421,-817.08,0.00019397,2]
[373377601,1752976262430,-1199.84,0.00019397,2]
[373377602,1752976262440,-1353.58,0.00019397,2]
[373377603,1752976262449,-1586.5,0.00019397,2]
[373377604,1752976262459,-3572.48,0.00019397,2]
[373377605,1752976262468,-480.0,0.00019397,2]
[373377606,1752976262478,-1060.07,0.00019397,2]
[373377607,1752976262487,-593.71,0.00019397,2]
[373377608,1752976262497,-480.0,0.00019397,2]
[373377609,1752976262506,-563.35,0.00019397,2]
[373377610,1752976262515,-3199.5,0.00019397,2]
[373377611,1752976262526,-1809.22,0.00019397,2]
[373377612,1752976262536,-2678.64,0.00019397,2]
[373377613,1752976262546,-480.0,0.00019397,2]
[373377614,1752976262556,-658.01,0.00019397,2]
[373377615,1752976262566,-480.0,0.00019397,2]
[373377616,1752976262576,-486.49,0.00019397,2]
[373377617,1752976262585,-480.0,0.00019397,2]
[373377618,1752976262595,-1498.77,0.00019397,2]
[373377619,1752976262604,-502.09,0.00019397,2]
[373377620,1752976262614,-1075.2,0.00019397,2]
[373377621,1752976262624,-2493.97,0.00019397,2]
[373377622,1752976262635,-480.0,0.00019397,2]
[373377623,1752976262644,-480.0,0.00019397,2]
[373377624,1752976262653,-480.0,0.00019397,2]
[373377625,1752976262662,-25128.97,0.00019397,2]
[373377626,1752976262671,-480.0,0.00019397,2]
[373377627,1752976262681,-480.0,0.00019397,2]
[373377628,1752976262691,-1177.13,0.00019397,2]
[373377629,1752976262701,-480.0,0.00019397,2]
[373377630,1752976262710,-480.0,0.00019397,2]
[373377631,1752976262720,-480.0,0.00019397,2]
[373377632,1752976262730,-846.85,0.00019397,2]
[373377633,1752976262739,-480.0,0.00019397,2]
[373377634,1752976262748,-2908.89,0.00019397,2]
[373377635,1752976262758,-1121.62,0.00019397,2]
[373377636,1752976262767,-635.26,0.00019397,2]
[373377637,1752976262779,-480.0,0.00019397,2]
[373377638,1752976262789,-1290.05,0.00019397,2]
[373377639,1752976262799,-480.0,0.00019397,2]
[373377640,1752976262808,-480.0,0.00019397,2]
[373377641,1752976262817,-592.93,0.00019397,2]
[373377642,1752976262827,-1150.09,0.00019397,2]
[373377643,1752976262836,-480.0,0.00019397,2]
[373377644,1752976262846,-480.0,0.00019397,2]
[373377645,1752976262855,-480.0,0.00019397,2]
[373377646,1752976262865,-1047.91,0.00019397,2]
[373377647,1752976262874,-740.5,0.00019397,2]
[373377648,1752976262883,-3391.53,0.00019397,2]
[373377649,1752976262894,-1383.0,0.00019397,2]
[373377650,1752976262907,-480.0,0.00019397,2]
[373377651,1752976262917,-480.0,0.00019397,2]
[373377652,1752976262926,-666.72,0.00019397,2]
[373377653,1752976262935,-1496.16,0.00019397,2]
[373377654,1752976262946,-480.0,0.00019397,2]
[373377655,1752976262955,-832.52,0.00019397,2]
[373377656,1752976262965,-1167.58,0.00019397,2]
[373377657,1752976262975,-480.0,0.00019397,2]
[373377658,1752976262984,-719.21,0.00019397,2]
[373377659,1752976262994,-1878.82,0.00019397,2]
[373377660,1752976263003,-6377.87,0.00019397,2]
[373377661,1752976263012,-480.0,0.00019397,2]
[373377662,1752976263022,-509.08,0.00019397,2]
[373377663,1752976263031,-4775.58167637,0.00019401,2]
[373377664,1752976263042,-684.94354185,0.00019421,2]
[373377665,1752976263051,-743.94457458,0.00019441,2]
[373377666,1752976263062,-500.0,0.00019447,2]
[373377667,1752976263072,-150.75331276,0.00019447,2]
[373377668,1752976263081,-2218.0,0.00019447,2]
[373377669,1752976263091,-500.0,0.00019447,2]
[373377670,1752976263100,-150.0,0.00019447,2]
[373377671,1752976263110,-158.22535961,0.00019447,2]
[373377672,1752976263120,-150.0,0.00019447,2]
[373377673,1752976263130,-659.62,0.00019451,2]
[373377674,1752976263139,-603.47553003,0.00019452,2]
[373377675,1752976263148,-500.0,0.00019452,2]
[373377676,1752976263158,-178.39700075,0.00019452,2]
[373377677,1752976263167,-150.0,0.00019452,2]
[373377678,1752976263177,-150.56640623,0.00019452,2]
[373377679,1752976263187,-500.0,0.00019452,2]
[373377680,1752976263197,-152.04412336,0.00019452,2]
[373377681,1752976263206,-168.0,0.00019471,2]
[373377682,1752976263215,-391074.0,0.000195,2]
[373377683,1752976263225,-168.0,0.00019501,2]
[373377684,1752976263234,-659.62,0.00019505,2]
[373377685,1752976263311,-480.0,0.00019506,2]
[373377686,1752976263321,-480.0,0.00019506,2]
[373377687,1752976263331,-480.0,0.00019506,2]
[373377688,1752976263341,-480.0,0.00019506,2]
[373377689,1752976263350,-480.0,0.00019506,2]
[373377690,1752976263360,-480.0,0.00019506,2]
[373377691,1752976263371,-480.0,0.00019506,2]
[373377692,1752976263381,-480.0,0.00019506,2]
[373377693,1752976263391,-480.0,0.00019506,2]
[373377694,1752976263400,-480.0,0.00019506,2]
[373377695,1752976263409,-480.0,0.00019506,2]
[373377696,1752976263418,-480.0,0.00019506,2]
[373377697,1752976263428,-480.0,0.00019506,2]
[373377698,1752976263437,-480.0,0.00019506,2]
[373377699,1752976263447,-480.0,0.00019506,2]
[373377700,1752976263456,-480.0,0.00019506,2]
[373377701,1752976263466,-480.0,0.00019506,2]
[373377702,1752976263475,-480.0,0.00019506,2]
[373377703,1752976263485,-480.0,0.00019506,2]
[373377704,1752976263494,-480.0,0.00019506,2]
[373377705,1752976263503,-480.0,0.00019506,2]
[373377706,1752976263513,-480.0,0.00019506,2]
[373377707,1752976263524,-480.0,0.00019506,2]
[373377708,1752976263534,-480.0,0.00019506,2]
[373377709,1752976263543,-195.51293063,0.00019506,2]
[373377710,1752976263553,-480.0,0.00019506,2]
[373377711,1752976263562,-480.0,0.00019506,2]
[373377712,1752976263571,-480.0,0.00019506,2]
[373377713,1752976263581,-480.0,0.00019506,2]
[373377714,1752976263590,-480.0,0.00019506,2]
[373377715,1752976263600,-683.22,0.00019506,2]
[373377716,1752976263609,-480.0,0.00019506,2]
[373377717,1752976263618,-400.15619824,0.00019506,2]
[373377718,1752976263628,-4429.76,0.00019506,2]
[373377719,1752976263638,-480.0,0.00019506,2]
[373377720,1752976263648,-480.0,0.00019506,2]
[373377721,1752976263657,-480.0,0.00019506,2]
[373377722,1752976263666,-736.27,0.00019506,2]
[373377723,1752976263677,-194.95681313,0.00019506,2]
[373377724,1752976263687,-489.15,0.00019506,2]
[373377725,1752976263696,-480.0,0.00019506,2]
[373377726,1752976263706,-480.0,0.00019506,2]
[373377727,1752976263720,-617.9,0.00019506,2]
[373377728,1752976263729,-852.66,0.00019506,2]
[373377729,1752976263739,-899.62,0.00019506,2]
[373377730,1752976263748,-480.0,0.00019506,2]
[373377731,1752976263758,-480.0,0.00019506,2]
[373377732,1752976263767,-480.0,0.00019506,2]
[373377733,1752976263778,-480.0,0.00019506,2]
[373377734,1752976263788,-480.0,0.00019506,2]
[373377735,1752976263797,-480.0,0.00019506,2]
[373377736,1752976263807,-480.0,0.00019506,2]
[373377737,1752976263817,-852.03,0.00019506,2]
[373377738,1752976263828,-480.0,0.00019506,2]
[373377739,1752976263838,-480.0,0.00019506,2]
[373377740,1752976263848,-571.02,0.00019506,2]
[373377741,1752976263858,-519.26,0.00019506,2]
[373377742,1752976263867,-480.0,0.00019506,2]
[373377743,1752976263876,-480.0,0.00019506,2]
[373377744,1752976263885,-480.0,0.00019506,2]
[373377745,1752976263896,-554.7,0.00019506,2]
[373377746,1752976263909,-480.0,0.00019506,2]
[373377747,1752976263919,-480.0,0.00019506,2]
[373377748,1752976263928,-480.0,0.00019506,2]
[373377749,1752976263938,-483.57,0.00019506,2]
[373377750,1752976263947,-480.0,0.00019506,2]
[373377751,1752976263956,-480.0,0.00019506,2]
[373377752,1752976263966,-480.0,0.00019506,2]
[373377753,1752976263975,-515.03,0.00019506,2]
[373377754,1752976263985,-480.0,0.00019506,2]
[373377755,1752976263995,-480.0,0.00019506,2]
[373377756,1752976264005,-480.0,0.00019506,2]
[373377757,1752976264014,-480.0,0.00019506,2]
[373377758,1752976264025,-480.0,0.00019506,2]
[373377759,1752976264035,-480.0,0.00019506,2]
[373377760,1752976264044,-480.0,0.00019506,2]
[373377761,1752976264053,-480.0,0.00019506,2]
[373377762,1752976264062,-480.0,0.00019506,2]
[373377763,1752976264072,-375.83789721,0.00019506,2]
[373377764,1752976264082,-485.44,0.00019506,2]
[373377765,1752976264092,-480.0,0.00019506,2]
[373377766,1752976264102,-480.0,0.00019506,2]
[373377767,1752976264111,-670.56,0.00019506,2]
[373377768,1752976264125,-480.0,0.00019506,2]
[373377769,1752976264136,-480.0,0.00019506,2]
[373377770,1752976264146,-480.0,0.00019506,2]
[373377771,1752976264155,-1489.32,0.00019506,2]
[373377772,1752976264164,-363.50766791,0.00019506,2]
[373377773,1752976264176,-480.0,0.00019506,2]
[373377774,1752976264186,-480.0,0.00019506,2]
[373377775,1752976264195,-480.0,0.00019506,2]
[373377776,1752976264205,-642.45,0.00019506,2]
[373377777,1752976264215,-590.0,0.00019506,2]
[373377778,1752976264224,-890.19,0.00019506,2]
[373377779,1752976264233,-480.0,0.00019506,2]
[373377780,1752976264243,-480.0,0.00019506,2]
[373377781,1752976264252,-480.0,0.00019506,2]
[373377782,1752976264263,-515.91,0.00019506,2]
[373377783,1752976264273,-480.0,0.00019506,2]
[373377784,1752976264284,-480.0,0.00019506,2]
[373377785,1752976264294,-480.0,0.00019506,2]
[373377786,1752976264304,-480.0,0.00019506,2]
[373377787,1752976264314,-480.0,0.00019506,2]
[373377788,1752976264323,-701.81,0.00019506,2]
[373377789,1752976264333,-480.0,0.00019506,2]
[373377790,1752976264343,-480.0,0.00019506,2]
[373377791,1752976264352,-789.0,0.00019506,2]
[373377792,1752976264362,-480.0,0.00019506,2]
[373377793,1752976264371,-480.0,0.00019506,2]
[373377794,1752976264381,-480.0,0.00019506,2]
[373377795,1752976264390,-480.0,0.00019506,2]
[373377796,1752976264400,-865.92,0.00019506,2]
[373377797,1752976264410,-480.0,0.00019506,2]
[373377798,1752976264419,-651.34,0.00019506,2]
[373377799,1752976264430,-480.0,0.00019506,2]
[373377800,1752976264440,-480.0,0.00019506,2]
[373377801,1752976264451,-480.0,0.00019506,2]
[373377802,1752976264460,-480.0,0.00019506,2]
[373377803,1752976264469,-529.8,0.00019506,2]
[373377804,1752976264481,-480.0,0.00019506,2]
[373377805,1752976264491,-480.0,0.00019506,2]
[373377806,1752976264500,-480.0,0.00019506,2]
[373377807,1752976264510,-480.0,0.00019506,2]
[373377808,1752976264520,-460.989115,0.00019506,2]
[373377809,1752976264530,-928.55,0.00019506,2]
[373377810,1752976264539,-638.96,0.00019506,2]
[373377811,1752976264549,-480.0,0.00019506,2]
[373377812,1752976264559,-480.0,0.00019506,2]
[373377813,1752976264569,-837.49,0.00019506,2]
[373377814,1752976264578,-480.0,0.00019506,2]
[373377815,1752976264588,-480.0,0.00019506,2]
[373377816,1752976264598,-443.937646,0.00019506,2]
[373377817,1752976264609,-480.0,0.00019506,2]
[373377818,1752976264618,-344.869005,0.00019506,2]
[373377819,1752976264628,-480.0,0.00019506,2]
[373377820,1752976264637,-480.0,0.00019506,2]
[373377821,1752976264648,-480.0,0.00019506,2]
[373377822,1752976264657,-480.0,0.00019506,2]
[373377823,1752976264667,-1118.56,0.00019506,2]
[373377824,1752976264676,-653.65,0.00019506,2]
[373377825,1752976264686,-480.0,0.00019506,2]
[373377826,1752976264697,-247.96107767,0.00019506,2]
[373377827,1752976264707,-480.0,0.00019506,2]
[373377828,1752976264715,-2196.41,0.00019506,2]
[373377829,1752976264727,-567.75,0.00019506,2]
[373377830,1752976264737,-228.33988832,0.00019506,2]
[373377831,1752976264749,-574.8,0.00019506,2]
[373377832,1752976264759,-480.0,0.00019506,2]
[373377833,1752976264770,-480.0,0.00019506,2]
[373377834,1752976264780,-480.0,0.00019506,2]
[373377835,1752976264789,-480.0,0.00019506,2]
[373377836,1752976264801,-660.8,0.00019506,2]
[373377837,1752976264811,-480.0,0.00019506,2]
[373377838,1752976264822,-480.0,0.00019506,2]
[373377839,1752976264831,-740.35,0.00019506,2]
[373377840,1752976264842,-480.0,0.00019506,2]
[373377841,1752976264852,-480.0,0.00019506,2]
[373377842,1752976264863,-658.91,0.00019506,2]
[373377843,1752976264872,-480.0,0.00019506,2]
[373377844,1752976264882,-746.47,0.00019506,2]
[373377845,1752976264891,-480.0,0.00019506,2]
[373377846,1752976264904,-1099.72,0.00019506,2]
[373377847,1752976264914,-480.0,0.00019506,2]
[373377848,1752976264923,-480.0,0.00019506,2]
[373377849,1752976264934,-480.0,0.00019506,2]
[373377850,1752976264943,-480.0,0.00019506,2]
[373377851,1752976264952,-480.0,0.00019506,2]
[373377852,1752976264962,-1615.6,0.00019506,2]
[373377853,1752976264971,-584.86,0.00019506,2]
[373377854,1752976264982,-1035.72,0.00019506,2]
[373377855,1752976264992,-480.0,0.00019506,2]
[373377856,1752976265001,-480.0,0.00019506,2]
[373377857,1752976265010,-600.4,0.00019506,2]
[373377858,1752976265020,-480.0,0.00019506,2]
[373377859,1752976265029,-480.0,0.00019506,2]
[373377860,1752976265039,-541.69,0.00019506,2]
[373377861,1752976265048,-480.0,0.00019506,2]
[373377862,1752976265057,-480.0,0.00019506,2]
[373377863,1752976265067,-480.0,0.00019506,2]
[373377864,1752976265077,-489.44068988,0.00019506,2]
[373377865,1752976265088,-303.72700869,0.00019506,2]
[373377866,1752976265097,-480.0,0.00019506,2]
[373377867,1752976265107,-1389.76,0.00019506,2]
[373377868,1752976265116,-560.26,0.00019506,2]
[373377869,1752976265126,-480.0,0.00019506,2]
[373377870,1752976265139,-480.0,0.00019506,2]
[373377871,1752976265149,-534.49,0.00019506,2]
[373377872,1752976265158,-3006.49,0.00019506,2]
[373377873,1752976265168,-480.0,0.00019506,2]
[373377874,1752976265177,-480.0,0.00019506,2]
[373377875,1752976265187,-434.35047936,0.00019506,2]
[373377876,1752976265196,-480.0,0.00019506,2]
[373377877,1752976265205,-480.0,0.00019506,2]
[373377878,1752976265215,-5337.74,0.00019506,2]
[373377879,1752976265225,-480.0,0.00019506,2]
[373377880,1752976265234,-480.0,0.00019506,2]
[373377881,1752976265243,-480.0,0.00019506,2]
[373377882,1752976265252,-480.0,0.00019506,2]
[373377883,1752976265261,-545.87,0.00019506,2]
[373377884,1752976265271,-480.0,0.00019506,2]
[373377885,1752976265281,-480.0,0.00019506,2]
[373377886,1752976265291,-480.0,0.00019506,2]
[373377887,1752976265301,-1043.97,0.00019506,2]
[373377888,1752976265310,-3359.24,0.00019506,2]
[373377889,1752976265319,-215.20635396,0.00019506,2]
[373377890,1752976265329,-575.63,0.00019506,2]
[373377891,1752976265339,-480.0,0.00019506,2]
[373377892,1752976265349,-1971.95,0.00019506,2]
[373377893,1752976265358,-525.14,0.00019506,2]
[373377894,1752976265368,-480.0,0.00019506,2]
[373377895,1752976265378,-480.0,0.00019506,2]
[373377896,1752976265388,-977.88,0.00019506,2]
[373377897,1752976265398,-637.77,0.00019506,2]
[373377898,1752976265409,-480.0,0.00019506,2]
[373377899,1752976265419,-994.88,0.00019506,2]
[373377900,1752976265429,-257.10920103,0.00019506,2]
[373377901,1752976265439,-480.0,0.00019506,2]
[373377902,1752976265448,-1041.68,0.00019506,2]
[373377903,1752976265458,-480.0,0.00019506,2]
[373377904,1752976265468,-682.51,0.00019506,2]
[373377905,1752976265478,-550.63,0.00019506,2]
[373377906,1752976265488,-480.0,0.00019506,2]
[373377907,1752976265498,-4039.7,0.00019506,2]
[373377908,1752976265508,-2203.38,0.00019506,2]
[373377909,1752976265518,-480.0,0.00019506,2]
[373377910,1752976265528,-1000.08,0.00019506,2]
[373377911,1752976265538,-480.0,0.00019506,2]
[373377912,1752976265550,-1033.57,0.00019506,2]
[373377913,1752976265560,-480.0,0.00019506,2]
[373377914,1752976265570,-480.0,0.00019506,2]
[373377915,1752976265579,-286.74041729,0.00019506,2]
[373377916,1752976265589,-615.08,0.00019506,2]
[373377917,1752976265599,-955.87,0.00019506,2]
[373377918,1752976265609,-480.0,0.00019506,2]
[373377919,1752976265621,-480.0,0.00019506,2]
[373377920,1752976265633,-480.0,0.00019506,2]
[373377921,1752976265643,-480.0,0.00019506,2]
[373377922,1752976265655,-540.57,0.00019506,2]
[373377923,1752976265666,-780.95,0.00019506,2]
[373377924,1752976265689,-2257.53,0.00019506,2]
[373377925,1752976265703,-164.52,0.00019506,2]
[373377926,1752976265714,-480.0,0.00019506,2]
[373377927,1752976265726,-480.0,0.00019506,2]
[373377928,1752976265736,-480.0,0.00019506,2]
[373377929,1752976265746,-852.91,0.00019506,2]
[373377930,1752976265756,-480.0,0.00019506,2]
[373377931,1752976265767,-480.0,0.00019506,2]
[373377932,1752976265778,-480.0,0.00019506,2]
[373377933,1752976265788,-809.87,0.00019506,2]
[373377934,1752976265798,-2870.66,0.00019506,2]
[373377935,1752976265808,-480.0,0.00019506,2]
[373377936,1752976265818,-1118.31,0.00019506,2]
[373377937,1752976265828,-480.0,0.00019506,2]
[373377938,1752976265838,-480.0,0.00019506,2]
[373377939,1752976265848,-740.37,0.00019506,2]
[373377940,1752976265858,-803.87,0.00019506,2]
[373377941,1752976265870,-958.33,0.00019506,2]
[373377942,1752976265881,-480.0,0.00019506,2]
[373377943,1752976265891,-504.19,0.00019506,2]
[373377944,1752976265905,-3397.86,0.00019506,2]
[373377945,1752976265915,-480.0,0.00019506,2]
[373377946,1752976265925,-657.26,0.00019506,2]
[373377947,1752976265936,-480.0,0.00019506,2]
[373377948,1752976265947,-681.07,0.00019506,2]
[373377949,1752976265956,-480.0,0.00019506,2]
[373377950,1752976265966,-2540.68,0.00019506,2]
[373377951,1752976265976,-1355.38,0.00019506,2]
[373377952,1752976265987,-718.35,0.00019506,2]
[373377953,1752976265998,-480.0,0.00019506,2]
[373377954,1752976266008,-910.21,0.00019506,2]
[373377955,1752976266017,-480.0,0.00019506,2]
[373377956,1752976266028,-756.72,0.00019506,2]
[373377957,1752976266038,-9103.88,0.00019506,2]
[373377958,1752976266049,-2862.65,0.00019506,2]
[373377959,1752976266059,-4774.77,0.00019506,2]
[373377960,1752976266069,-526.73,0.00019506,2]
[373377961,1752976266080,-1208.73,0.00019506,2]
[373377962,1752976266091,-480.0,0.00019506,2]
[373377963,1752976266103,-480.0,0.00019506,2]
[373377964,1752976266114,-1838.65,0.00019506,2]
[373377965,1752976266125,-590.22,0.00019506,2]
[373377966,1752976266136,-480.0,0.00019506,2]
[373377967,1752976266146,-1636.51,0.00019506,2]
[373377968,1752976266157,-480.0,0.00019506,2]
[373377969,1752976266167,-1063.68,0.00019506,2]
[373377970,1752976266177,-480.0,0.00019506,2]
[373377971,1752976266187,-561.21,0.00019506,2]
[373377972,1752976266198,-852.7,0.00019506,2]
[373377973,1752976266207,-219.06645014,0.00019506,2]
[373377974,1752976266217,-569.95,0.00019506,2]
[373377975,1752976266228,-6268.06,0.00019506,2]
[373377976,1752976266240,-1041.51,0.00019506,2]
[373377977,1752976266249,-1298.99,0.00019506,2]
[373377978,1752976266261,-480.0,0.00019506,2]
[373377979,1752976266270,-480.0,0.00019506,2]
[373377980,1752976266281,-666.13,0.00019506,2]
[373377981,1752976266291,-3960.08,0.00019506,2]
[373377982,1752976266310,-480.0,0.00019506,2]
[373377983,1752976266321,-480.0,0.00019506,2]
[373377984,1752976266332,-1948.59,0.00019506,2]
[373377985,1752976266343,-480.0,0.00019506,2]
[373377986,1752976266355,-1291.96,0.00019506,2]
[373377987,1752976266365,-1040.82,0.00019506,2]
[373377988,1752976266375,-1249.23,0.00019506,2]
[373377989,1752976266385,-1601.14,0.00019506,2]
[373377990,1752976266395,-480.0,0.00019506,2]
[373377991,1752976266406,-696.63,0.00019506,2]
[373377992,1752976266416,-480.0,0.00019506,2]
[373377993,1752976266426,-1184.75,0.00019506,2]
[373377994,1752976266436,-480.0,0.00019506,2]
[373377995,1752976266445,-480.0,0.00019506,2]
[373377996,1752976266456,-480.0,0.00019506,2]
[373377997,1752976266466,-880.33,0.00019506,2]
[373377998,1752976266476,-480.0,0.00019506,2]
[373377999,1752976266486,-646.35,0.00019506,2]
[373378000,1752976266497,-480.0,0.00019506,2]
[373378001,1752976266507,-671.42,0.00019506,2]
[373378002,1752976266517,-880.58,0.00019506,2]
[373378003,1752976266527,-480.0,0.00019506,2]
[373378004,1752976266537,-480.0,0.00019506,2]
[373378005,1752976266548,-480.0,0.00019506,2]
[373378006,1752976266558,-1428.17,0.00019506,2]
[373378007,1752976266568,-1525.79,0.00019506,2]
[373378008,1752976266577,-1025.14,0.00019506,2]
[373378009,1752976266588,-1391.25,0.00019506,2]
[373378010,1752976266598,-601.74,0.00019506,2]
[373378011,1752976266611,-364.57377294,0.00019506,2]
[373378012,1752976266621,-595.82,0.00019506,2]
[373378013,1752976266631,-725.67,0.00019506,2]
[373378014,1752976266641,-1310.94,0.00019506,2]
[373378015,1752976266653,-4527.03,0.00019506,2]
[373378016,1752976266664,-2184.53,0.00019506,2]
[373378017,1752976266674,-2126.9,0.00019506,2]
[373378018,1752976266685,-753.76,0.00019506,2]
[373378019,1752976266696,-480.0,0.00019506,2]
[373378020,1752976266705,-480.0,0.00019506,2]
[373378021,1752976266715,-480.0,0.00019506,2]
[373378022,1752976266726,-1111.03,0.00019506,2]
[373378023,1752976266737,-480.0,0.00019506,2]
[373378024,1752976266749,-1996.48,0.00019506,2]
[373378025,1752976266761,-493.91,0.00019506,2]
[373378026,1752976266773,-1367.45,0.00019506,2]
[373378027,1752976266783,-480.0,0.00019506,2]
[373378028,1752976266793,-1080.26,0.00019506,2]
[373378029,1752976266803,-480.0,0.00019506,2]
[373378030,1752976266812,-2492.25,0.00019506,2]
[373378031,1752976266823,-912.59,0.00019506,2]
[373378032,1752976266834,-799.59,0.00019506,2]
[373378033,1752976266844,-480.0,0.00019506,2]
[373378034,1752976266854,-480.0,0.00019506,2]
[373378035,1752976266863,-615.47,0.00019506,2]
[373378036,1752976266873,-1094.62,0.00019506,2]
[373378037,1752976266883,-1838.11,0.00019506,2]
[373378038,1752976266895,-480.0,0.00019506,2]
[373378039,1752976266911,-623.82,0.00019506,2]
[373378040,1752976266923,-940.07,0.00019506,2]
[373378041,1752976266935,-480.0,0.00019506,2]
[373378042,1752976266948,-530.44,0.00019506,2]
[373378043,1752976266959,-828.57,0.00019506,2]
[373378044,1752976266969,-1831.8,0.00019506,2]
[373378045,1752976266980,-780.91,0.00019506,2]
[373378046,1752976266992,-3807.6,0.00019506,2]
[373378047,1752976267001,-480.0,0.00019506,2]
[373378048,1752976267011,-1090.39,0.00019506,2]
[373378049,1752976267020,-817.08,0.00019506,2]
[373378050,1752976267032,-1199.84,0.00019506,2]
[373378051,1752976267042,-1353.58,0.00019506,2]
[373378052,1752976267052,-1586.5,0.00019506,2]
[373378053,1752976267061,-3572.48,0.00019506,2]